bitfinex/quotes_BTCUSD_20250213
["timestamp","ask_amount","ask_price","bid_price","bid_amount"]
[1739469665417,0.00855594,95846.0,95845.0,0.009]
[1739469665616,0.00855594,95846.0,95845.0,0.004]
[1739469666291,0.00855594,95846.0,95845.0,0.160502]
[1739469666730,0.00855594,95846.0,95845.0,0.26400565]
[1739469667757,0.00855594,95846.0,95845.0,0.26000565]
[1739469667934,0.00855594,95846.0,95845.0,0.26300565]
[1739469668932,0.00855594,95846.0,95845.0,0.27515852]
[1739469670956,0.00855594,95846.0,95845.0,0.35275852]
[1739469671328,0.00022366,95846.0,95845.0,0.35275852]
[1739469672202,0.00022366,95846.0,95845.0,0.87445852]
[1739469672402,0.00022366,95846.0,95845.0,0.89745852]
[1739469673005,0.00022366,95846.0,95845.0,0.89645852]
[1739469673385,0.00022366,95846.0,95845.0,0.90345852]
[1739469673879,0.00022366,95846.0,95845.0,0.90045852]
[1739469674237,0.00022366,95846.0,95845.0,0.90745852]
[1739469674756,0.00022366,95846.0,95845.0,0.92819526]
[1739469677576,0.00022366,95846.0,95845.0,1.46339526]
[1739469682535,7e-07,95849.0,95848.0,0.471197]
[1739469682790,0.00022366,95859.0,95858.0,0.461181]
[1739469683017,0.00022366,95859.0,95858.0,0.56368465]
[1739469683199,0.00022366,95859.0,95858.0,0.57368465]
[1739469683418,0.00022366,95859.0,95858.0,0.56368465]
[1739469684168,0.00022366,95859.0,95858.0,0.57368465]
[1739469685049,0.00022366,95859.0,95858.0,0.58068465]
[1739469686063,0.00022366,95859.0,95858.0,0.58768465]
[1739469686488,0.00022366,95859.0,95858.0,1.44668465]
[1739469686697,0.08348073,95894.0,95878.0,0.430948]
[1739469686905,0.08348073,95894.0,95878.0,1.41545165]
[1739469687087,0.08348073,95894.0,95888.0,0.156432]
[1739469687305,0.08348073,95904.0,95888.0,0.25893565]
[1739469687933,0.08348073,95904.0,95888.0,0.10250365]
[1739469688132,0.00026812,95889.0,95888.0,0.10250365]
[1739469688435,0.00026812,95889.0,95888.0,0.25893565]
[1739469688666,0.00026812,95889.0,95888.0,0.26393565]
[1739469689101,0.00026812,95889.0,95888.0,0.11150365]
[1739469689554,0.00026812,95889.0,95888.0,0.26793565]
[1739469689761,0.00026812,95889.0,95888.0,0.26393565]
[1739469689978,0.15669812,95889.0,95888.0,0.005]
[1739469690194,0.15669812,95889.0,95888.0,0.006]
[1739469690387,0.15669812,95889.0,95888.0,0.001]
[1739469690628,0.15669812,95889.0,95888.0,0.004]
[1739469690832,0.15669812,95889.0,95888.0,0.001]
[1739469691266,0.16501687,95889.0,95888.0,0.002]
[1739469691478,0.02032531,95889.0,95878.0,0.859]
[1739469691686,0.156447,95879.0,95878.0,0.3238]
[1739469692126,0.208593,95881.0,95878.0,0.3238]
[1739469692127,0.156444,95881.0,95878.0,0.3238]
[1739469692336,0.156445,95881.0,95878.0,0.3238]
[1739469692962,0.156443,95882.0,95878.0,0.3238]
[1739469693171,0.156443,95882.0,95878.0,0.3258]
[1739469693282,0.156445,95880.0,95878.0,0.3258]
[1739469693486,0.00831875,95880.0,95878.0,0.3258]
[1739469693801,0.00831875,95880.0,95878.0,0.3288]
[1739469694234,0.00831875,95880.0,95878.0,0.3258]
[1739469694613,0.156447,95879.0,95878.0,0.3238]
[1739469694991,0.156447,95879.0,95878.0,0.3248]
[1739469695200,0.16476575,95879.0,95878.0,0.001]
[1739469695404,0.156458,95873.0,95863.0,0.3238]
[1739469695619,0.21691575,95879.0,95864.0,0.10250365]
[1739469695843,0.00831875,95879.0,95869.0,0.156462]
[1739469696054,0.00831875,95879.0,95878.0,0.002]
[1739469696258,0.00831875,95879.0,95878.0,0.242348]
[1739469696466,0.00831875,95879.0,95878.0,0.34485165]
[1739469697090,0.00831875,95879.0,95878.0,0.34285165]
[1739469697722,0.00831875,95879.0,95878.0,0.34185165]
[1739469698119,0.00831875,95879.0,95878.0,0.34485165]
[1739469699422,0.00831875,95879.0,95878.0,0.34585165]
[1739469699647,0.00831875,95879.0,95878.0,0.54445165]
[1739469699854,0.00831875,95879.0,95878.0,1.40345165]
[1739469700055,0.00831875,95879.0,95878.0,1.42645165]
[1739469700247,0.00026812,95889.0,95887.0,0.306434]
[1739469700248,0.00831875,95888.0,95887.0,0.306434]
[1739469700490,0.00831875,95888.0,95887.0,0.49193765]
[1739469700913,0.00831875,95888.0,95887.0,0.51493765]
[1739469701313,0.00831875,95888.0,95887.0,0.49193765]
[1739469701912,0.00026812,95889.0,95888.0,0.306432]
[1739469702167,0.00026812,95889.0,95888.0,0.40893565]
[1739469703791,0.00026812,95889.0,95888.0,0.41293565]
[1739469704237,0.00026812,95889.0,95888.0,0.73973565]
[1739469706043,0.00026812,95889.0,95888.0,0.76273565]
[1739469708973,0.00026812,95889.0,95888.0,0.80983565]
[1739469709569,0.00026812,95889.0,95888.0,0.88743565]
[1739469710105,0.00026812,95889.0,95888.0,1.42263565]
[1739469711200,0.00026812,95889.0,95888.0,1.43263565]
[1739469712808,0.00026812,95889.0,95888.0,1.42963565]
[1739469712931,0.00026812,95889.0,95888.0,1.42563565]
[1739469713146,0.00026812,95889.0,95888.0,1.43263565]
[1739469714165,0.00026812,95889.0,95888.0,1.43963565]
[1739469714984,0.00026812,95889.0,95888.0,1.44963565]
[1739469715202,0.00026812,95889.0,95888.0,1.44263565]
[1739469715408,0.00026812,95889.0,95888.0,1.47503221]
[1739469715630,0.00026812,95889.0,95888.0,1.48203221]
[1739469715996,0.00026812,95889.0,95888.0,1.47503221]
[1739469716367,0.00026812,95889.0,95888.0,1.48203221]
[1739469718048,0.00022387,95912.0,95888.0,1.48203221]
[1739469718049,0.00022387,95912.0,95911.0,0.306394]
[1739469718250,0.00026789,95912.0,95911.0,1.26789765]
[1739469718676,0.00026789,95912.0,95911.0,1.34409765]
[1739469719273,0.00026789,95912.0,95911.0,1.41779765]
[1739469719885,0.00026789,95912.0,95911.0,1.42279765]
[1739469720185,0.00026789,95912.0,95911.0,1.4558147]
[1739469721638,0.00026789,95912.0,95911.0,1.4658147]
[1739469722861,0.00026789,95912.0,95911.0,1.4608147]
[1739469723349,0.00026789,95912.0,95911.0,1.4558147]
[1739469723477,0.00026789,95912.0,95911.0,1.4628147]
[1739469724360,0.00026789,95912.0,95911.0,1.4698147]
[1739469724584,0.00026789,95912.0,95911.0,1.4598147]
[1739469726467,0.00026789,95912.0,95911.0,1.1304207]
[1739469726677,0.00026789,95912.0,95911.0,1.14354314]
[1739469726890,0.00026789,95912.0,95911.0,1.29354314]
[1739469727448,0.00026789,95912.0,95911.0,0.59494914]
[1739469727676,0.00026789,95912.0,95911.0,0.44494914]
[1739469727891,0.00026789,95912.0,95911.0,0.44294914]
[1739469728489,0.00026789,95912.0,95911.0,0.43794914]
[1739469728827,0.00026789,95912.0,95911.0,0.44094914]
[1739469729264,0.00026789,95912.0,95911.0,0.44594914]
[1739469730071,0.15666089,95912.0,95911.0,0.3318]
[1739469730281,0.15666089,95912.0,95911.0,0.3268]
[1739469730702,0.15666089,95912.0,95911.0,0.3308]
[1739469730913,0.156393,95912.0,95911.0,0.3308]
[1739469731334,0.156393,95912.0,95911.0,0.3238]
[1739469731466,0.156393,95912.0,95911.0,0.3248]
[1739469731677,0.156393,95912.0,95911.0,0.004]
[1739469732950,0.156393,95912.0,95911.0,0.001]
[1739469733161,0.156421,95895.0,95894.0,0.3238]
[1739469733365,0.208556,95898.0,95894.0,0.32389619]
[1739469733575,0.156414,95900.0,95894.0,0.32389619]
[1739469733774,0.156415,95899.0,95894.0,0.32389619]
[1739469734162,0.14721124,95910.0,95894.0,0.32389619]
[1739469734163,0.156421,95895.0,95894.0,0.32389619]
[1739469734368,0.208557,95898.0,95894.0,0.32389619]
[1739469734576,0.156421,95895.0,95894.0,0.32389619]
[1739469734792,0.156419,95896.0,95894.0,0.32389619]
[1739469734917,0.156421,95895.0,95894.0,0.32489619]
[1739469736469,0.156418,95897.0,95894.0,0.32489619]
[1739469736664,0.156418,95897.0,95894.0,0.32389619]
[1739469736865,0.0122,95908.0,95894.0,0.32389619]
[1739469737088,0.156414,95899.0,95894.0,0.32389619]
[1739469737247,0.156418,95897.0,95894.0,0.32389619]
[1739469737447,0.156416,95898.0,95894.0,0.32389619]
[1739469737941,0.0122,95908.0,95894.0,0.32389619]
[1739469738160,0.156421,95895.0,95894.0,0.32389619]
[1739469739425,0.384677,95895.0,95894.0,0.32389619]
[1739469739834,0.208558,95897.0,95894.0,0.32389619]
[1739469740083,0.156421,95895.0,95894.0,0.32389619]
[1739469740507,0.156421,95895.0,95894.0,0.32489619]
[1739469740688,0.156421,95895.0,95894.0,0.32389619]
[1739469741569,0.156421,95895.0,95894.0,0.32489619]
[1739469742722,0.156421,95895.0,95894.0,0.00109619]
[1739469743550,1.663897,95895.0,95894.0,0.00109619]
[1739469743703,1.614355,95895.0,95894.0,0.00109619]
[1739469744759,0.924444,95895.0,95894.0,0.00109619]
[1739469745745,1.1294513,95895.0,95894.0,0.00109619]
[1739469745924,1.04810342,95895.0,95894.0,0.00109619]
[1739469746762,1.04810342,95895.0,95894.0,9.619e-05]
[1739469747213,1.04810342,95895.0,95894.0,0.00209619]
[1739469747434,0.28008042,95895.0,95894.0,0.00209619]
[1739469747680,0.28008042,95895.0,95894.0,0.00109619]
[1739469747894,3.10939742,95895.0,95894.0,0.00109619]
[1739469748270,3.19463747,95895.0,95894.0,0.00209619]
[1739469748882,3.10939742,95895.0,95894.0,0.00209619]
[1739469749493,3.10939742,95895.0,95894.0,0.00109619]
[1739469749706,3.10939742,95895.0,95894.0,9.619e-05]
[1739469749945,3.10939742,95895.0,95894.0,0.00109619]
[1739469750151,3.11139742,95895.0,95894.0,0.00209619]
[1739469750364,2.68746342,95895.0,95894.0,0.00209619]
[1739469750660,2.66707842,95895.0,95894.0,0.00109619]
[1739469750897,2.66907842,95895.0,95894.0,0.00209619]
[1739469751921,1.140405,95895.0,95894.0,0.00209619]
[1739469752139,0.002,95895.0,95894.0,0.00209619]
[1739469752912,0.01175687,95909.0,95894.0,0.00109619]
[1739469753061,0.001,95895.0,95894.0,0.00220259]
[1739469753268,0.001,95895.0,95894.0,0.00120259]
[1739469753469,0.14721124,95904.0,95894.0,0.00020259]
[1739469753470,0.208546,95902.0,95894.0,0.00020259]
[1739469753698,0.208543,95904.0,95894.0,0.00120259]
[1739469753906,0.14721124,95920.0,95895.0,0.0825]
[1739469754077,0.114044,95911.0,95895.0,0.0825]
[1739469754279,0.156404,95906.0,95896.0,0.156419]
[1739469754652,0.01147541,95913.0,95895.0,0.0825]
[1739469754864,0.14721124,95910.0,95895.0,0.0825]
[1739469755317,0.156421,95895.0,95894.0,0.00020259]
[1739469756587,0.208535,95908.0,95894.0,0.00020259]
[1739469756788,0.14721124,95910.0,95894.0,0.00020259]
[1739469756992,0.189517,95909.0,95894.0,0.00020259]
[1739469757197,0.156414,95900.0,95894.0,0.00020259]
[1739469757498,0.01156308,95913.0,95894.0,0.00020259]
[1739469757604,0.156406,95905.0,95894.0,0.00020259]
[1739469758059,0.208534,95908.0,95894.0,0.10270624]
[1739469758266,0.08348073,95924.0,95895.0,0.0759]
[1739469758466,0.185009,95911.0,95895.0,0.0759]
[1739469758899,0.001,95908.0,95895.0,0.0759]
[1739469759326,0.156403,95906.0,95895.0,0.0759]
[1739469759835,0.001,95911.0,95896.0,0.10250365]
[1739469760046,0.001,95911.0,95899.0,0.156413]
[1739469760259,0.0001065,95912.0,95900.0,0.156412]
[1739469760407,0.0001065,95912.0,95896.0,0.10250365]
[1739469760620,0.001,95906.0,95898.0,0.121]
[1739469760896,0.001,95906.0,95899.0,0.00104264]
[1739469761099,0.001,95906.0,95898.0,0.22350365]
[1739469761642,0.156406,95905.0,95898.0,0.22350365]
[1739469761842,0.156406,95904.0,95898.0,0.22350365]
[1739469762051,0.156403,95906.0,95898.0,0.22350365]
[1739469762284,0.156404,95905.0,95900.0,0.001]
[1739469762648,0.156404,95905.0,95898.0,0.22350365]
[1739469763104,0.001,95904.0,95898.0,0.22350365]
[1739469763502,0.156404,95905.0,95898.0,0.22350365]
[1739469763933,0.157404,95905.0,95898.0,0.22350365]
[1739469764429,0.001,95905.0,95898.0,0.22350365]
[1739469764666,0.156412,95901.0,95898.0,0.22350365]
[1739469764914,0.156408,95903.0,95898.0,0.22350365]
[1739469765184,0.156405,95905.0,95898.0,0.22350365]
[1739469765407,0.157406,95904.0,95898.0,0.22350365]
[1739469765623,0.156414,95899.0,95898.0,0.121]
[1739469765845,0.156421,95895.0,95894.0,0.00020259]
[1739469768135,0.156421,95895.0,95894.0,0.00120259]
[1739469771531,0.156421,95895.0,95894.0,0.00020259]
[1739469771737,0.157421,95895.0,95894.0,0.00020259]
[1739469772323,0.156421,95895.0,95894.0,0.00020259]
[1739469772533,0.24721124,95910.0,95895.0,0.0782]
[1739469772534,0.156411,95901.0,95895.0,0.0782]
[1739469772765,0.103423,95900.0,95896.0,0.049]
[1739469772978,0.208546,95902.0,95896.0,0.049]
[1739469773184,0.103423,95901.0,95896.0,0.049]
[1739469773400,0.156417,95897.0,95896.0,0.049]
[1739469774615,0.156421,95895.0,95894.0,0.00020259]
[1739469776879,0.157421,95895.0,95894.0,0.00020259]
[1739469777225,0.001,95895.0,95894.0,0.00020259]
[1739469777425,0.001,95895.0,95894.0,0.12770259]
[1739469778694,0.157421,95895.0,95894.0,0.12770259]
[1739469780349,0.001,95895.0,95894.0,0.12770259]
[1739469780586,0.157421,95895.0,95894.0,0.12770259]
[1739469781306,0.157421,95895.0,95894.0,0.00020259]
[1739469781782,0.7869,95895.0,95894.0,0.00020259]
[1739469782020,3.16754965,95895.0,95894.0,0.00020259]
[1739469782477,2.89002728,95895.0,95894.0,0.00020259]
[1739469782976,2.88902728,95895.0,95894.0,0.00020259]
[1739469783684,2.91012246,95895.0,95894.0,0.00020259]
[1739469784599,2.91512246,95895.0,95894.0,0.00120259]
[1739469789972,2.91512246,95895.0,95889.0,9e-08]
[1739469789973,0.156429,95890.0,95889.0,9e-08]
[1739469790204,0.156429,95890.0,95844.0,0.08358723]
[1739469790205,0.156476,95861.0,95852.0,0.0473]
[1739469790457,1.379542,95861.0,95860.0,0.08361271]
[1739469790706,1.423697,95861.0,95860.0,0.00013198]
[1739469790957,1.242835,95861.0,95860.0,0.00013198]
[1739469791196,0.483892,95861.0,95860.0,0.00013198]
[1739469791665,0.4952901,95861.0,95860.0,0.00013198]
[1739469791912,0.5002901,95861.0,95860.0,0.00113198]
[1739469792416,0.4952901,95861.0,95860.0,0.00013198]
[1739469792885,0.59779375,95861.0,95860.0,0.00013198]
[1739469793176,0.4992901,95861.0,95860.0,0.00013198]
[1739469794145,0.75779375,95861.0,95860.0,0.00013198]
[1739469795206,0.85779375,95861.0,95860.0,0.00013198]
[1739469795447,0.87728132,95861.0,95860.0,0.00013198]
[1739469795694,0.88559497,95861.0,95860.0,0.00013198]
[1739469797197,1.32473899,95861.0,95860.0,0.00013198]
[1739469797458,1.33473899,95861.0,95860.0,0.00013198]
[1739469797709,0.16,95860.0,95859.0,1e-08]
[1739469797987,3.09182065,95860.0,95859.0,4.403e-05]
[1739469798266,3.3943243,95860.0,95859.0,4.403e-05]
[1739469798795,3.41381187,95860.0,95859.0,4.403e-05]
[1739469799037,3.42212552,95860.0,95859.0,4.403e-05]
[1739469799828,3.42812552,95860.0,95859.0,0.00104403]
[1739469800040,3.45926981,95860.0,95859.0,0.00104403]
[1739469801013,3.46626981,95860.0,95859.0,0.00104403]
[1739469801742,3.35376616,95860.0,95859.0,0.00104403]
[1739469801947,2.45744516,95860.0,95859.0,0.00104403]
[1739469802126,2.46744516,95860.0,95859.0,0.00104403]
[1739469802552,2.22945632,95860.0,95859.0,0.00104403]
[1739469802967,2.23945632,95860.0,95859.0,0.00104403]
[1739469804094,2.22945632,95860.0,95859.0,0.00104403]
[1739469806061,2.19831203,95860.0,95859.0,0.00104403]
[1739469806493,2.19831203,95860.0,95859.0,3e-08]
[1739469806707,0.256501,95846.0,95845.0,0.0001065]
[1739469806908,3.085818,95846.0,95845.0,0.00015054]
[1739469807353,3.18832165,95846.0,95845.0,0.00015054]
[1739469807759,3.2006353,95846.0,95845.0,0.00015054]
[1739469807955,3.26128209,95846.0,95845.0,0.00015054]
[1739469808165,3.25728209,95846.0,95845.0,0.00015054]
[1739469808805,0.316502,95845.0,95844.0,4e-08]
[1739469809015,3.27132265,95845.0,95844.0,4e-08]
[1739469809252,0.44200565,95845.0,95844.0,4e-08]
[1739469809777,0.50096609,95845.0,95844.0,4e-08]
[1739469809981,0.60346974,95845.0,95844.0,4e-08]
[1739469810620,0.59346974,95845.0,95844.0,4e-08]
[1739469810830,0.69346974,95845.0,95844.0,4e-08]
[1739469811035,0.58196609,95845.0,95844.0,4e-08]
[1739469811246,0.59196609,95845.0,95844.0,4e-08]
[1739469811456,0.58196609,95845.0,95844.0,4e-08]
[1739469811894,0.59196609,95845.0,95844.0,4e-08]
[1739469813015,0.44196609,95845.0,95844.0,4e-08]
[1739469813218,0.43196609,95845.0,95844.0,4e-08]
[1739469813448,0.01,95844.0,95814.0,0.08348073]
[1739469813618,0.156517,95836.0,95835.0,0.00018422]
[1739469813863,1.480008,95836.0,95835.0,0.00018422]
[1739469815529,1.50780922,95836.0,95835.0,0.00018422]
[1739469816347,1.51980922,95836.0,95835.0,0.00018422]
[1739469817130,1.50743722,95836.0,95835.0,0.00018422]
[1739469817538,1.50043722,95836.0,95835.0,0.08008422]
[1739469817768,0.44669522,95836.0,95835.0,0.08008422]
[1739469817970,0.39581822,95836.0,95835.0,0.08008422]
[1739469818583,0.39081822,95836.0,95835.0,0.08008422]
[1739469819000,0.18431822,95836.0,95835.0,0.08108422]
[1739469819327,0.19031822,95836.0,95835.0,0.08108422]
[1739469819535,0.17683065,95836.0,95835.0,0.08108422]
[1739469819956,0.16483065,95836.0,95835.0,0.08008422]
[1739469820147,0.52652465,95836.0,95835.0,0.08008422]
[1739469820378,0.52952465,95836.0,95835.0,0.08008422]
[1739469820582,0.36932265,95836.0,95835.0,0.08008422]
[1739469820708,0.17383065,95836.0,95835.0,0.08008422]
[1739469821910,0.53626165,95836.0,95835.0,0.08008422]
[1739469822120,0.80085465,95836.0,95835.0,0.08008422]
[1739469822352,0.80085465,95836.0,95835.0,0.00018422]
[1739469822353,2.24270965,95836.0,95835.0,0.00018422]
[1739469822581,2.48373765,95836.0,95835.0,0.00018422]
[1739469825340,2.85787895,95836.0,95835.0,0.00018422]
[1739469825546,0.156548,95817.0,95816.0,0.0789]
[1739469826339,1.35214665,95817.0,95816.0,0.0789]
[1739469826543,0.51894739,95817.0,95816.0,0.0789]
[1739469826763,0.51894739,95817.0,95816.0,0.0799]
[1739469827832,0.52726104,95817.0,95816.0,0.0829]
[1739469828240,0.38030304,95817.0,95816.0,0.0829]
[1739469828715,0.38030304,95817.0,95816.0,0.0799]
[1739469828900,0.38030304,95817.0,95816.0,0.0789]
[1739469829313,0.38230304,95817.0,95816.0,0.0789]
[1739469831663,0.2113513,95817.0,95816.0,0.0789]
[1739469831869,0.156548,95817.0,95816.0,0.0789]
[1739469833059,0.33314,95817.0,95816.0,0.0789]
[1739469833259,0.684628,95817.0,95816.0,0.0789]
[1739469833461,0.684464,95817.0,95816.0,0.0789]
[1739469837845,0.684464,95817.0,95816.0,0.0790065]
[1739469838831,0.684464,95817.0,95816.0,0.0001065]
[1739469839040,0.79696765,95817.0,95816.0,5e-07]
[1739469839225,0.79696765,95817.0,95815.0,0.0001066]
[1739469839226,2.939317,95816.0,95815.0,1e-07]
[1739469839372,0.36905365,95816.0,95815.0,1e-07]
[1739469840311,0.37605365,95816.0,95815.0,1e-07]
[1739469840514,0.4785573,95816.0,95815.0,1e-07]
[1739469840875,0.5085573,95816.0,95815.0,1e-07]
[1739469841311,0.5015573,95816.0,95815.0,1e-07]
[1739469842074,0.5085573,95816.0,95815.0,1e-07]
[1739469842880,0.156564,95807.0,95806.0,0.0001066]
[1739469843036,3.08838465,95807.0,95806.0,0.0001066]
[1739469843238,3.1908883,95807.0,95806.0,0.0001066]
[1739469843447,3.08838465,95807.0,95806.0,0.0001066]
[1739469843872,3.08838465,95807.0,95806.0,6e-07]
[1739469844059,0.26519948,95807.0,95806.0,6e-07]
[1739469844265,0.27519948,95807.0,95806.0,6e-07]
[1739469844465,0.53600639,95807.0,95806.0,6e-07]
[1739469844870,0.54300639,95807.0,95806.0,6e-07]
[1739469845088,0.56374102,95807.0,95806.0,6e-07]
[1739469845976,0.256586,95794.0,95793.0,0.0001065]
[1739469846179,0.256586,95794.0,95793.0,5e-07]
[1739469846180,3.18840665,95794.0,95793.0,5e-07]
[1739469846405,0.72509785,95794.0,95793.0,5e-07]
[1739469846556,0.1,95775.0,95769.0,0.0783]
[1739469846753,0.156625,95770.0,95769.0,0.0783]
[1739469846956,2.751341,95770.0,95769.0,0.0783]
[1739469847158,2.985942,95770.0,95769.0,0.0783]
[1739469847553,2.955337,95770.0,95769.0,0.0783]
[1739469847752,2.96364026,95770.0,95769.0,0.0783]
[1739469847963,2.96377202,95770.0,95769.0,0.0783]
[1739469848358,2.96377202,95770.0,95765.0,0.0492]
[1739469848359,0.156631,95766.0,95765.0,0.0492]
[1739469848589,2.894486,95766.0,95765.0,0.0492]
[1739469848822,0.156631,95766.0,95765.0,0.0492]
[1739469849051,2.857306,95766.0,95765.0,0.0492]
[1739469849256,2.985948,95766.0,95765.0,0.0492]
[1739469849582,2.79384091,95766.0,95765.0,0.0492]
[1739469849803,0.1,95765.0,95763.0,9e-07]
[1739469850023,0.36913865,95764.0,95763.0,9e-07]
[1739469850245,0.266654,95752.0,95751.0,9e-07]
[1739469850475,0.51915765,95752.0,95751.0,9e-07]
[1739469850692,0.88533085,95752.0,95751.0,9e-07]
[1739469850912,0.9878345,95752.0,95751.0,9e-07]
[1739469851388,0.9878345,95752.0,95719.0,0.0001065]
[1739469851389,0.276695,95727.0,95726.0,0.00891509]
[1739469851601,0.156707,95720.0,95719.0,0.0001065]
[1739469851810,0.316707,95720.0,95719.0,0.0001065]
[1739469852016,0.166707,95720.0,95719.0,0.0001065]
[1739469852165,2.996024,95720.0,95719.0,0.0001065]
[1739469852615,2.99615566,95720.0,95719.0,0.0001065]
[1739469853046,3.13283758,95720.0,95719.0,0.0001065]
[1739469853209,3.29283758,95720.0,95719.0,0.0001065]
[1739469853398,3.39534123,95720.0,95719.0,0.0001065]
[1739469854095,3.39034123,95720.0,95719.0,0.0001065]
[1739469854664,3.39734123,95720.0,95719.0,0.0001065]
[1739469854878,3.37146622,95720.0,95719.0,0.0001065]
[1739469855093,3.39034123,95720.0,95719.0,0.0001065]
[1739469855305,3.39734123,95720.0,95719.0,0.0001065]
[1739469855522,3.36146622,95720.0,95719.0,0.0001065]
[1739469855750,3.13944649,95720.0,95719.0,0.0001065]
[1739469856191,3.22944649,95720.0,95719.0,0.0001065]
[1739469856416,0.98501492,95720.0,95719.0,0.0001065]
[1739469856633,0.88501492,95720.0,95719.0,0.0001065]
[1739469856843,0.98001492,95720.0,95719.0,0.0001065]
[1739469857095,0.97301492,95720.0,95719.0,0.0001065]
[1739469857308,0.97901492,95720.0,95719.0,0.0001065]
[1739469857527,0.98001492,95720.0,95719.0,0.0001065]
[1739469857745,0.98501492,95720.0,95719.0,0.0001065]
[1739469857912,0.97801492,95720.0,95719.0,0.0001065]
[1739469858134,0.31117844,95720.0,95719.0,0.0001065]
[1739469858336,3.14049544,95720.0,95719.0,0.0001065]
[1739469858741,3.24299909,95720.0,95719.0,0.0001065]
[1739469859126,3.40299909,95720.0,95719.0,0.0001065]
[1739469859961,3.39799909,95720.0,95719.0,0.0001065]
[1739469860443,3.40499909,95720.0,95719.0,0.0001065]
[1739469860650,3.39099909,95720.0,95719.0,0.0001065]
[1739469860883,3.24799909,95720.0,95719.0,0.0001065]
[1739469861095,3.22096257,95720.0,95719.0,0.0001065]
[1739469861304,2.94042557,95720.0,95719.0,0.0001065]
[1739469861508,2.74243857,95720.0,95719.0,0.0001065]
[1739469861714,2.72333557,95720.0,95719.0,0.0001065]
[1739469862028,1.33090492,95720.0,95719.0,0.0001065]
[1739469862236,1.15862492,95720.0,95719.0,0.1237065]
[1739469862830,1.00458092,95720.0,95719.0,0.1237065]
[1739469863069,0.63059592,95720.0,95719.0,0.1237065]
[1739469863274,0.39295492,95720.0,95719.0,0.1237065]
[1739469863480,0.39495492,95720.0,95719.0,0.1237065]
[1739469863631,0.38795492,95720.0,95719.0,0.1237065]
[1739469863834,0.61999921,95720.0,95719.0,0.1237065]
[1739469864044,0.55166192,95720.0,95719.0,0.1237065]
[1739469864458,0.54466192,95720.0,95719.0,0.1237065]
[1739469864851,0.54966192,95720.0,95719.0,0.1237065]
[1739469866315,0.65216557,95720.0,95719.0,0.1237065]
[1739469866517,0.75466922,95720.0,95719.0,0.0001065]
[1739469867138,0.74966922,95720.0,95719.0,0.0001065]
[1739469867339,0.65216557,95720.0,95719.0,0.0001065]
[1739469867596,0.65616557,95720.0,95719.0,0.0001065]
[1739469867797,0.67677032,95720.0,95719.0,0.0001065]
[1739469868029,0.68915867,95720.0,95719.0,0.0001065]
[1739469868152,0.79815709,95720.0,95719.0,0.0001065]
[1739469868773,0.79415709,95720.0,95719.0,0.0001065]
[1739469869342,0.69715867,95720.0,95719.0,0.0001065]
[1739469869480,0.65216557,95720.0,95719.0,0.0001065]
[1739469869687,0.64916557,95720.0,95719.0,0.0001065]
[1739469869900,0.65616557,95720.0,95719.0,0.0001065]
[1739469870101,0.65216557,95720.0,95719.0,0.0001065]
[1739469870317,0.156716,95714.0,95711.0,0.0004]
[1739469870513,1.606065,95714.0,95711.0,0.0004]
[1739469870744,2.420848,95714.0,95711.0,0.0004]
[1739469870999,2.242921,95714.0,95711.0,0.0004]
[1739469871196,1.761014,95714.0,95711.0,0.0004]
[1739469871419,1.724476,95714.0,95711.0,0.0004]
[1739469871675,1.729476,95714.0,95711.0,0.0004]
[1739469872087,1.732476,95714.0,95711.0,0.0004]
[1739469872288,1.74077926,95714.0,95711.0,0.0004]
[1739469873054,1.73277926,95714.0,95711.0,0.0004]
[1739469873470,1.76122303,95714.0,95711.0,0.0004]
[1739469873703,1.75822303,95714.0,95711.0,0.0004]
[1739469874673,1.96119994,95714.0,95711.0,0.0004]
[1739469874849,1.93875617,95714.0,95711.0,0.0004]
[1739469875702,0.15672,95712.0,95711.0,0.0004]
[1739469876063,3.09682065,95712.0,95711.0,0.0004]
[1739469876239,0.25922365,95712.0,95711.0,0.0004]
[1739469876442,3.08854065,95712.0,95711.0,0.0004]
[1739469877482,3.12860772,95712.0,95711.0,0.0004]
[1739469877697,3.14983926,95712.0,95711.0,0.0004]
[1739469877902,0.156748,95695.0,95694.0,0.08217]
[1739469878112,1.921723,95695.0,95694.0,0.08217]
[1739469878356,0.156754,95691.0,95690.0,0.0498]
[1739469878553,2.00551,95691.0,95690.0,0.0498]
[1739469878761,1.645997,95691.0,95690.0,0.0498]
[1739469879184,0.51889126,95691.0,95690.0,0.0498]
[1739469879422,0.12195326,95691.0,95690.0,0.0498]
[1739469879613,0.00830326,95691.0,95690.0,0.05023844]
[1739469879870,0.16505726,95691.0,95690.0,0.05123844]
[1739469880066,0.1845828,95691.0,95690.0,0.05123844]
[1739469880312,0.3577668,95691.0,95690.0,0.05123844]
[1739469880535,0.2010128,95691.0,95690.0,0.05123844]
[1739469880941,0.3577668,95691.0,95690.0,0.09692862]
[1739469883650,0.3597668,95691.0,95690.0,0.09692862]
[1739469884008,0.2010128,95691.0,95690.0,0.09692862]
[1739469884224,0.0278288,95691.0,95690.0,0.40368462]
[1739469884567,0.0288288,95691.0,95690.0,0.50618827]
[1739469884980,0.0288288,95691.0,95690.0,0.34943227]
[1739469886117,0.00930326,95691.0,95690.0,0.34943227]
[1739469886324,0.00930326,95691.0,95690.0,0.24692862]
[1739469886866,0.00930326,95691.0,95690.0,0.50618827]
[1739469887861,0.00930326,95691.0,95690.0,0.53876213]
[1739469888312,0.00930326,95691.0,95690.0,0.50629497]
[1739469888518,0.02887647,95691.0,95690.0,0.50629497]
[1739469889565,0.02787647,95691.0,95690.0,0.53885707]
[1739469889769,0.02887647,95691.0,95690.0,0.53885707]
[1739469890191,0.02987647,95691.0,95690.0,0.53885707]
[1739469890521,0.01367915,95724.0,95693.0,0.1971]
[1739469890751,0.156714,95716.0,95696.0,0.0783]
[1739469891058,0.01367915,95724.0,95709.0,0.0783]
[1739469891311,0.256924,95718.0,95711.0,0.156721]
[1739469891544,0.100213,95717.0,95711.0,0.156721]
[1739469891745,0.15693308,95719.0,95711.0,0.156721]
[1739469891746,0.256923,95718.0,95711.0,0.156721]
[1739469891975,0.100213,95717.0,95709.0,0.0783]
[1739469892265,0.00022408,95719.0,95717.0,0.156711]
[1739469892569,0.00022408,95719.0,95718.0,0.38331]
[1739469892780,0.00622408,95719.0,95718.0,0.38331]
[1739469893168,0.00022408,95719.0,95718.0,0.38331]
[1739469893558,0.00322408,95719.0,95718.0,0.38331]
[1739469894011,0.00022408,95719.0,95718.0,0.38331]